Cogmind - Beta 16.1 @@@ ROGUE MODE // 2026.04.19 @ 19:02:41 Player: obl-vn Result: Destroyed by NK-0LA with NK-0LA's Tesla Doomcannon Performance ------------- Evolutions (1) 500 Regions Visited (6) 1200 Robots Destroyed (76) 380 Value Destroyed (1628) 1628 Prototype IDs (7) 140 Alien Tech Used (0) 0 Bonus (61) 61 TOTAL SCORE: 3909 Bonus ------- Follower Combat Kills 86 Friendly Fire -25 Cogmind --------- Core Integrity 0/400 Matter 269/300 Energy 90/100 System Corruption 14% Temperature Cool (0) Movement Treading (320) Ox2 Location -8/Mines Parts ------- > --- POWER (1) -------- (None) > --- PROPULSION (3) --- Light Treads > --- UTILITY (2) ------ High-capacity Storage Unit > --- WEAPON (3) ------- Minigun Scythe > --- INVENTORY (20) --- Cold Fusion Reactor Light Neutrino Core Reinforced Fission Core Combat Antigrav System Large Storage Unit Gravity Neutralizer Experimental Core Analyzer Advanced Transmission Jammer Improved Assault Rifle Improved Assault Rifle Improved Assault Rifle 8R-AWN's Boregun Rocket Launcher Peak State ------------ > --- POWER ------------ Improved Ion Engine > --- PROPULSION ------- Light Treads Light Treads Light Treads > --- UTILITY ---------- High-capacity Storage Unit System Purifier > --- WEAPON ----------- Improved Assault Rifle Improved Assault Rifle Improved Assault Rifle > --- INVENTORY -------- Reinforced Fission Core Light Treads Light Treads Light Treads Gravity Neutralizer Light Armor Plating Light Armor Plating Hardened Light Armor Plating 8R-AWN's Armor/EX Hacking Suite Hacking Suite Minigun Minigun Minigun 8R-AWN's Boregun Rocket Launcher Scythe [Rating: 31] Favorites ----------- Power Improved Ion Engine Engine Improved Ion Engine Power Core Light Neutrino Core Reactor Cold Fusion Reactor Propulsion Light Treads Treads Light Treads Utility High-capacity Storage Unit Device System Purifier Storage High-capacity Storage Unit Processor Targeting Computer Hackware EX Chip 2 Protection Light Armor Plating Weapon Assault Rifle Energy Gun Medium Laser Ballistic Gun Assault Rifle Ballistic Cannon Light Cannon Launcher Rocket Launcher Slashing Weapon Scythe Build | -11 -10 -10 -9 -9 -9 -8 ------- Run | Yrd Mat Min Mat Min Exi Min Slots Evolved 2 | . . . 2 . . . Power . | . . . . . . . Propulsion 1 | . . . 1 . . . Utility . | . . . . . . . Weapon 1 | . . . 1 . . . Parts Attached 55 | 6 6 1 18 4 18 2 Power 7 | 1 1 . 1 . 4 . Engine 5 | 1 1 . 1 . 2 . Core 1 | . . . . . 1 . Reactor 1 | . . . . . 1 . Propulsion 13 | 2 . . 5 . 4 2 Treads 13 | 2 . . 5 . 4 2 Leg . | . . . . . . . Wheel . | . . . . . . . Hover . | . . . . . . . Flight . | . . . . . . . Utility 15 | 1 3 . 4 1 6 . Device 2 | . . . . . 2 . Storage 3 | 1 2 . . . . . Processor 2 | . 1 . 1 . . . Hackware 1 | . . . . . 1 . Protection 7 | . . . 3 1 3 . Artifact . | . . . . . . . Weapon 20 | 2 2 1 8 3 4 . Energy Gun 2 | 1 1 . . . . . Energy Cannon . | . . . . . . . Ballistic Gun 12 | 1 . . 8 . 3 . Ballistic Cannon 1 | . . 1 . . . . Launcher 2 | . 1 . . . 1 . Special Weapon . | . . . . . . . Impact Weapon . | . . . . . . . Slashing Weapon 3 | . . . . 3 . . Piercing Weapon . | . . . . . . . Special Melee Weapon . | . . . . . . . Unidentified Prototypes 7 | . . . 1 . 6 . Parts Lost 17 | . 1 2 1 1 . 12 Power 3 | . 1 1 . . . 1 Propulsion 6 | . . . 1 . . 5 Utility 3 | . . . . 1 . 2 Weapon 5 | . . 1 . . . 4 Highest Loss Streak 12 | . 1 1 1 1 . 12 To Critical Strikes . | . . . . . . . Average Backups 14 | . 9 16 19 19 14 18 Power . | . . . . . 1 3 Propulsion 2 | . 1 2 3 4 2 3 Utility 4 | . 1 5 7 7 4 4 Weapon 6 | . 6 8 8 8 5 7 Tool/Special . | . . . . . . . Unused Backups 25 | . 1 . 7 . 11 6 Power 4 | . . . . . 3 1 Propulsion 1 | . . . . . . 1 Utility 13 | . 1 . 1 . 8 3 Weapon 6 | . . . 5 . . 1 Tool/Special 1 | . . . 1 . . . Average Slot Usage (%) 95 | . 98 85 98 100 99 91 Engine 8 | . 13 . 10 11 10 8 Treads 30 | . 27 28 33 33 33 31 Storage 11 | . 14 14 11 11 8 11 Processor 6 | . 13 14 1 . . . Protection 6 | . . . 9 11 13 9 Energy Gun 6 | . 13 14 . . . . Ballistic Gun 16 | . 14 . 32 32 19 11 Ballistic Cannon 3 | . . 13 . . . . Slashing Weapon 4 | . . . . . 13 18 Peak Build Rating 31 | 6 8 8 20 20 31 23 Average Rating 14 | 4 7 7 14 20 22 21 On Entrance 12 | . 6 8 8 20 20 23 Avg Prop Armor Cover (%) . | . . . . . . . Naked Turns . | . . . . . . . Heaviest Build 63 | 13 49 45 59 59 63 57 Greatest Support 60 | 40 40 40 60 60 60 60 Greatest Overweight (x) 2 | . 2 1 . . 1 . Average Overweight (x) . | . . 1 . . . . Largest Inventory Capacity 20 | 8 20 20 20 20 20 20 Average Capacity 17 | 7 14 20 20 20 16 20 Most Carried 20 | 5 17 18 20 20 20 20 Average Carried 15 | . 9 16 19 19 15 18 Final Capacity 20 | 8 20 20 20 20 20 20 Final Carried 20 | . 17 18 20 19 20 13 Class Distribution -------------------- 54% | Mutant 30% | Scavenger-Tank 6% | Tank 5% | Scavenger-Mutant Dominant Class ---------------- Mutant | -10/Materials Mutant | -10/Mines Scavenger-Tank | -9/Materials Scavenger-Tank | -9/Mines Scavenger-Tank | -9/Exiles Scavenger-Mutant | -8/Mines Resources | -11 -10 -10 -9 -9 -9 -8 ----------- Run | Yrd Mat Min Mat Min Exi Min Matter Collected 2160 | 227 274 62 793 129 616 59 Remotely . | . . . . . . . Salvage Created 2693 | . 426 304 1332 166 465 . Parts 200 | . 38 12 80 14 56 . Haulers Intercepted 4 | . 1 . 3 . . . Recyclers Shooed 2 | . 1 1 . . . . Parts Field Recycled . | . . . . . . . Retrieved Matter . | . . . . . . . Parts Self-Destructed . | . . . . . . . Prevented . | . . . . . . . Parts Restored . | . . . . . . . Kills | -11 -10 -10 -9 -9 -9 -8 ------- Run | Yrd Mat Min Mat Min Exi Min Combat Hostiles Destroyed 54 | . 10 6 23 8 7 . Melee 1 | . . . . . 1 . Guns 44 | . 8 4 23 8 1 . Cannons 2 | . . 2 . . . . AOE 7 | . 2 . . . 5 . Classes Destroyed 15 | . 8 . 4 1 2 . Worker 1 | . 1 . . . . . Builder 3 | . 2 1 . . . . Tunneler 1 | . . . 1 . . . Hauler 4 | . 1 . 3 . . . Recycler 3 | . 1 . 2 . . . Mechanic 1 | . . . 1 . . . Operator 2 | . 1 . 1 . . . Watcher 4 | . 3 . 1 . . . Swarmer 16 | . 7 . 4 5 . . Grunt 23 | . 3 6 12 2 . . Duelist 1 | . . . 1 . . . Sentry 6 | . . . 6 . . . Demolisher 1 | . . . . 1 . . Zionite 7 | . . . . . 7 . Assembled 6 | . . . . . 6 . Best Kill Streak 8 | . 8 3 6 3 5 . Combat Bots Only 6 | . 5 3 6 3 5 . Max Kills in Single Turn 3 | . 3 1 2 1 2 . Gunslinging 1 | . 1 . . . . . Exploded 2 | . 1 . . . 2 . Melee 1 | . . . . . 1 . Uniques/NPCs Destroyed 4 | . . . . . 4 . 8R-AWN (-9/Exiles) EX-DEC (-9/Exiles) EX-BIN (-9/Exiles) EX-HEX (-9/Exiles) Combat | -11 -10 -10 -9 -9 -9 -8 -------- Run | Yrd Mat Min Mat Min Exi Min Hostile Shots Fired 317 | . 64 27 71 9 50 96 Missed 86 | . 17 6 19 2 8 34 Hits 231 | . 47 21 52 7 42 62 Projectile 231 | . 47 21 52 7 42 62 AOE 3 | . . . . 3 . . Critical Strikes 25 | . 1 . 1 . 22 1 Damage Taken 3561 | . 418 296 672 181 519 1475 Core 537 | . 59 67 48 . 77 286 Absorbed by Shields . | . . . . . . . Ignored by Resistances 130 | . . . . . 130 . Regen/Repaired (Parts) 213 | . 213 . . . . . Core Remaining (%) 74 | 100 . 49 . . . . Volleys Fired 157 | . 34 19 60 11 33 . Largest 3 | . 2 2 3 3 3 . Hottest 80 | . 70 80 75 75 69 . Shots Fired 399 | . 64 38 179 33 85 . Gun 387 | . 60 33 179 33 82 . Cannon 5 | . . 5 . . . . Launcher 7 | . 4 . . . 3 . Special . | . . . . . . . Kinetic 343 | . 30 19 179 33 82 . Thermal 49 | . 30 19 . . . . Explosive 7 | . 4 . . . 3 . Electromagnetic . | . . . . . . . Robot Hit Streak 19 | . 7 13 19 10 11 . Robot Miss Streak 5 | . 5 2 3 3 2 . Penetration Max . | . . . . . . . Secondary Targets 7 | . 2 2 1 1 1 . Max Gunslinging Chain 1 | . 1 1 1 1 1 . Shots Hit Robots 292 | . 38 30 126 17 69 12 Core Hits 139 | . 24 15 55 10 33 2 Critical Kills 1 | . . . 1 . . . Critical Parts Destroyed 2 | . . . . . 2 . Critical Strikes 11 | . 2 4 1 . 2 2 Burn 5 | . 2 3 . . . . Destroy 3 | . . . 1 . 2 . Blast 1 | . . 1 . . . . Sever 2 | . . . . . . 2 Melee Attacks 41 | . . . . . 23 18 Impact . | . . . . . . . Slashing 41 | . . . . . 23 18 Piercing . | . . . . . . . Sneak Attacks . | . . . . . . . Combat Hostiles . | . . . . . . . Follow-up Attacks 9 | . . . . . 6 3 Damage Inflicted 5162 | . 797 418 1683 310 1578 376 Guns 3495 | . 431 348 1650 310 756 . Cannons 69 | . . 69 . . . . Explosions 630 | . 365 . . . 265 . Melee 933 | . . . . . 557 376 Ramming 35 | . 1 1 33 . . . Kinetic 3128 | . 208 204 1650 310 756 . Thermal 436 | . 223 213 . . . . Explosive 630 | . 365 . . . 265 . Electromagnetic . | . . . . . . . Impact . | . . . . . . . Slashing 933 | . . . . . 557 376 Piercing . | . . . . . . . Highest Corruption 13 | . . . 1 1 1 13 Average Corruption 1 | . . . 1 1 1 6 Corruption Purged 1 | . . . . . 1 . Corruption Blocked . | . . . . . . . Effects 25 | . . . 11 3 9 2 Message Errors 6 | . . . 1 1 4 . Matter Fused 9 | . . . 5 1 3 . Heat Flow Errors 1 | . . . 1 . . . Energy Discharges 2 | . . . 2 . . . Parts Rejected 1 | . . . . . . 1 Parts Fused 1 | . . . . . 1 . Data Loss (minor) 4 | . . . 1 1 1 1 Weapon Failures 1 | . . . 1 . . . Overload Shots . | . . . . . . . Overflow Damage 6 | . . 1 . . 5 . Projectiles 1 | . . 1 . . . . Explosions 5 | . . . . . 5 . Melee . | . . . . . . . Knockbacks 1 | . . . 1 . . . Impact 1 | . . . 1 . . . Kinetic . | . . . . . . . Secondary . | . . . . . . . Self-Inflicted Damage . | . . . . . . . Shots . | . . . . . . . Rammed 5 | . 1 1 3 . . . Targets Rammed 5 | . 1 1 3 . . . Kicked . | . . . . . . . Crushed . | . . . . . . . Highest Temperature 136 | . 27 136 107 71 77 . Average Temperature 27 | . 9 63 18 23 24 . Received Heat Transfer 600 | . 72 165 315 30 18 . Siege Activations . | . . . . . . . Martial Activations . | . . . . . . . Shielding Activations . | . . . . . . . Robots Disrupted . | . . . . . . . Combat Hostiles . | . . . . . . . Robots Corrupted . | . . . . . . . Combat Hostiles . | . . . . . . . Parts Fried . | . . . . . . . Impact Corruptions . | . . . . . . . Robots Melted . | . . . . . . . Combat Hostiles . | . . . . . . . Parts Melted 2 | . 2 . . . . . Heat Transferred 1653 | . 802 851 . . . . Parts Sabotaged . | . . . . . . . Parts Stolen . | . . . . . . . Parts Stripped . | . . . . . . . Power Chain Reactions . | . . . . . . . Alert | -11 -10 -10 -9 -9 -9 -8 ------- Run | Yrd Mat Min Mat Min Exi Min Maximum Alert Level 1 | . 1 . 1 . . . Low Security (%) 91 | 100 99 100 59 100 . 100 Level 1 8 | . . . 40 . . . Level 2 . | . . . . . . . Level 3 . | . . . . . . . Level 4 . | . . . . . . . Level 5 . | . . . . . . . High Security . | . . . . . . . Max Security . | . . . . . . . Peak Influence 290 | . 200 66 290 111 . . Initial 95 | . . 1 20 95 . . Average 49 | . 28 5 156 43 . . Influence Increases 1607 | . 348 178 866 215 . . Destroy 0b10 Robot/C 1060 | . 200 120 560 180 . . Destroy 0b10 Robot/NC 105 | . 45 5 55 . . . Destroy Leader 240 | . 38 30 142 30 . . Allied During Kill 59 | . . 8 46 5 . . Successful Hack 33 | . 17 . 16 . . . Disable Machine 30 | . 15 . 15 . . . Destroy Structure 35 | . 33 . 2 . . . Lose Combat Pursuer 45 | . . 15 30 . . . Influence Decreases 1607 | . 342 132 672 382 79 . Entered New Map 267 | . . 5 32 151 79 . Time Decay 965 | . 207 107 430 221 . . Lost Part 50 | . 10 20 10 10 . . Lost Ally 60 | . . . 60 . . . Purge Threat 265 | . 125 . 140 . . . Squads Dispatched 5 | . 1 1 3 . . . Investigation 3 | . . 1 2 . . . Extermination . | . . . . . . . Reinforcement 2 | . 1 . 1 . . . Assault . | . . . . . . . Garrison . | . . . . . . . Intercept . | . . . . . . . Searches Triggered . | . . . . . . . Construction Impeded . | . . . . . . . Haulers Reinforced . | . . . . . . . Active Scanning Responses . | . . . . . . . Cargo Convoy Interrupts . | . . . . . . . Stealth | -11 -10 -10 -9 -9 -9 -8 --------- Run | Yrd Mat Min Mat Min Exi Min Distress Signals 6 | . 2 . 4 . . . Communications Jammed . | . . . . . . . Distress Signals . | . . . . . . . Times Spotted 91 | . 19 7 38 10 16 1 Peak Tracking Total 9 | . 7 3 4 4 9 1 Tactical Retreats 6 | . . 1 2 . 3 . Traps | -11 -10 -10 -9 -9 -9 -8 ------- Run | Yrd Mat Min Mat Min Exi Min Traps Triggered 2 | . 1 . 1 . . . Indirectly . | . . . . . . . Trap Hack Attempts . | . . . . . . . Triggered . | . . . . . . . Disarmed . | . . . . . . . Reprogrammed . | . . . . . . . Reused . | . . . . . . . Traps Extracted . | . . . . . . . Installed . | . . . . . . . Triggered . | . . . . . . . Machines | -11 -10 -10 -9 -9 -9 -8 ---------- Run | Yrd Mat Min Mat Min Exi Min Machines Disabled 7 | . 1 . 1 . 5 . Max in Single Turn 1 | . 1 . . . 1 . Machines Repaired . | . . . . . . . Machines Dismantled . | . . . . . . . Machines Sabotaged . | . . . . . . . Overloaded Fab Kills . | . . . . . . . Hacking | -11 -10 -10 -9 -9 -9 -8 --------- Run | Yrd Mat Min Mat Min Exi Min Machines Accessed 16 | . 7 1 6 1 1 . Terminals 10 | . 5 . 5 . . . Fabricators . | . . . . . . . Repair Stations 1 | . 1 . . . . . Recycling Units 1 | . 1 . . . . . Scanalyzers 1 | . . . 1 . . . Garrison Access . | . . . . . . . Total Hacks 44 | . 23 1 18 1 1 . Successful 23 | . 12 1 8 1 1 . Failed 20 | . 11 . 9 . . . Catastrophic 1 | . . . 1 . . . Database Lockouts 1 | . . . 1 . . . Manual 30 | . 16 . 13 . 1 . Terminals 31 | . 16 . 15 . . . Fabricators . | . . . . . . . Repair Stations 5 | . 5 . . . . . Recycling Units 2 | . 2 . . . . . Scanalyzers 3 | . . . 3 . . . Garrison Access . | . . . . . . . Terminal Hacks 7 | . 2 1 2 1 1 . Record 1 | . . . . . 1 . Open Door 2 | . . 1 . 1 . . Unreport Threat 2 | . 1 . 1 . . . Locate Traps 2 | . 1 . 1 . . . Fabricator Hacks . | . . . . . . . Repair Station Hacks 4 | . 4 . . . . . Scan Component 2 | . 2 . . . . . Repair 2 | . 2 . . . . . Recycling Unit Hacks . | . . . . . . . Scanalyzer 1 | . . . 1 . . . Retrieve Study 1 | . . . 1 . . . Garrison Access Hacks . | . . . . . . . Unauthorized Hacks 11 | . 6 . 5 . . . Terminals 10 | . 5 . 5 . . . Skim 10 | . 5 . 5 . . . Fabricators . | . . . . . . . Repair Stations . | . . . . . . . Recycling Units 1 | . 1 . . . . . Mask 1 | . 1 . . . . . Scanalyzers . | . . . . . . . Garrison Access . | . . . . . . . Data Cores Recovered 1 | . 1 . . . . . Used . | . . . . . . . Hacking Detections 13 | . 7 . 6 . . . Full Trace Events 2 | . 1 . 1 . . . Feedback Events 1 | . . . 1 . . . Corruption 1 | . . . 1 . . . Feedback Blocked . | . . . . . . . Robot Schematics Acquired . | . . . . . . . Robots Built . | . . . . . . . Authchips . | . . . . . . . Time . | . . . . . . . Total Robot Build Rating . | . . . . . . . Part Schematics Acquired . | . . . . . . . Parts Built . | . . . . . . . Authchips . | . . . . . . . Time . | . . . . . . . Total Part Build Rating . | . . . . . . . Part Studies Acquired 1 | . . . 1 . . . Parts Repaired 2 | . 2 . . . . . Time 52 | . 52 . . . . . Parts Recycled . | . . . . . . . Recycled Matter . | . . . . . . . Retrieved Matter . | . . . . . . . Retrieved Components . | . . . . . . . Parts Scanalyzed . | . . . . . . . Part Schematics Acquired . | . . . . . . . Parts Damaged . | . . . . . . . Bothacking | -11 -10 -10 -9 -9 -9 -8 ------------ Run | Yrd Mat Min Mat Min Exi Min Used RIF Installer . | . . . . . . . Robots Hacked . | . . . . . . . Non-combat . | . . . . . . . Combat . | . . . . . . . Robot Hacks Applied . | . . . . . . . Relay Couplers Released . | . . . . . . . Fabnet Peak Effective % . | . . . . . . . Robots Rewired . | . . . . . . . Allies Hacked . | . . . . . . . Hacks Repelled . | . . . . . . . Allies | -11 -10 -10 -9 -9 -9 -8 -------- Run | Yrd Mat Min Mat Min Exi Min Total Allies 4 | . . 3 . 1 . . Largest Group 3 | . . 3 3 1 1 . Highest-Rated Group 40 | . . 40 40 31 31 . Highest-Rated Ally 31 | . . 16 16 31 31 . Total Orders 4 | . . 4 . . . . STAY 2 | . . 2 . . . . FOLLOW 2 | . . 2 . . . . Ally Attacks 35 | . . . 29 2 4 . Total Damage 552 | . . . 318 21 213 . Kills 10 | . . . 7 1 2 . Allies Corrupted . | . . . . . . . Allies Melted . | . . . . . . . Turrets Deployed 1 | . . . . . 1 . Intel | -11 -10 -10 -9 -9 -9 -8 ------- Run | Yrd Mat Min Mat Min Exi Min Active Infowar (turns) 3 | . . . 3 . . . T.N.C. 3 | . . . 3 . . . Robot Analysis Total . | . . . . . . . Derelict Logs Recovered 1 | . . 1 . . . . Drone Launches . | . . . . . . . Drone Recoveries . | . . . . . . . Exploration | -11 -10 -10 -9 -9 -9 -8 ------------- Run | Yrd Mat Min Mat Min Exi Min Turns Passed 7479 | 52 1679 1718 1118 560 2230 122 Spaces Moved 3027 | 38 685 450 492 189 1143 30 Core 18 | 17 1 . . . . . Treads 3009 | 21 684 450 492 189 1143 30 Legs . | . . . . . . . Wheels . | . . . . . . . Hover . | . . . . . . . Flight . | . . . . . . . Fastest Speed 50 | 50 150 240 160 160 160 160 Average Speed 177 | 110 186 240 160 160 161 160 Slowest Speed 240 | 160 240 240 160 160 240 160 Overloaded Moves . | . . . . . . . Propulsion Burnouts . | . . . . . . . Robots Hopped 1 | . . . . . 1 . Potential Cave-ins . | . . . . . . . Cave-ins Triggered . | . . . . . . . Exploration Rate (%) 52 | 3 90 93 47 39 88 6 Regions Visited 6 Branch Regions 4 Pre-discovered Areas 4 | . 1 1 . 1 1 . Known Exits Taken 1 | . . 1 . . . . Unknown Exits Taken 5 | 1 1 . 1 1 1 . Scrap Searched 3 | . . 1 . 1 . 1 Spaces Dug . | . . . . . . . Terrain Destroyed 52 | . 32 . . . 20 . Melee . | . . . . . . . Projectile 1 | . . . . . 1 . AOE 51 | . 32 . . . 19 . Terrain Rammed . | . . . . . . . Walls Destroyed . | . . . . . . . Machines Disabled . | . . . . . . . Actions | -11 -10 -10 -9 -9 -9 -8 --------- Run | Yrd Mat Min Mat Min Exi Min Total 4770 | 48 1025 1050 698 427 1443 79 Wait 1304 | . 261 578 82 224 137 22 Move 3019 | 37 684 449 491 188 1140 30 Hop 1 | . . . . . 1 . Pick Up 96 | 5 28 2 21 . 39 1 Fast Attach 7 | 1 . . . . 6 . Attach 33 | 5 6 1 6 1 6 8 Detach 2 | . . . . . 2 . Swap 43 | . 6 . 14 3 17 3 Drop 71 | . 5 . 21 . 45 . Fire 157 | . 34 19 60 11 33 . Melee 32 | . . . . . 17 15 Ram . | . . . . . . . Kick . | . . . . . . . Crush 5 | . 1 1 3 . . . Escape Stasis . | . . . . . . . Rewire . | . . . . . . . Trap . | . . . . . . . Miscellaneous . | . . . . . . . Route ------- -11/Scrapyard -10/Materials (discovered 5 exits: *Mat x3 / *Min x2) -10/Mines (discovered 2 exits: *Mat x2) -9/Materials (discovered 4 exits: [*Mat] / *Min x2 / [*Sto]) -9/Mines (discovered 2 exits: [*Mat] / *Exi) -9/Exiles (discovered 2 exits: [*Min x2]) -8/Mines History --------- Turn | Location | Event 12 | -11/Scrapyard | Discovered new exit (range 16) 53 | -11/Scrapyard | Entered Materials 256 | -10/Materials | Discovered new exit (range 8) 314 | -10/Materials | Build established: Mutant 528 | -10/Materials | Discovered new exit (range 16) 693 | -10/Materials | Repaired Lgt. Treads 721 | -10/Materials | Repaired Lgt. Treads 730 | -10/Materials | Discovered new exit (range 3) 941 | -10/Materials | Discovered new exit (range 9) 1029 | -10/Materials | Learned location of 2 exits from Subcaves 1153 | -10/Materials | Learned location of Mines (-10) 1200 | -10/Materials | Learned location of 1 exit from Recycling 1238 | -10/Materials | Learned Storage trap positions 1288 | -10/Materials | Learned location of 2 exits from Mines 1347 | -10/Materials | Learned Storage stockpile data 1416 | -10/Materials | Discovered new exit (range 15) 1732 | -10/Materials | Entered Mines 1733 | -10/Mines | Identified exit to Materials 1735 | -10/Mines | Met a Derelict bent on vengeance 2019 | -10/Mines | Assisted by bots powering up and referring to "LRC-V3" 2091 | -10/Mines | Learned location of Zion (-6) 2152 | -10/Mines | Met a Derelict shopkeep closing up shop 3408 | -10/Mines | Core integrity fell below 50% 3450 | -10/Mines | Entered Materials 3450 | -9/Materials | Accompanied by 3 allies 3450 | -9/Materials | Evolved 2 slots: Propulsion x1, Weapon x1 3514 | -9/Materials | Discovered new exit (range 16) 3562 | -9/Materials | Central database locked down 3918 | -9/Materials | Build established: Tank 3965 | -9/Materials | Lost 3 allies 4240 | -9/Materials | Discovered new exit (range 16) 4325 | -9/Materials | Discovered new exit (range 16) 4354 | -9/Materials | Build established: Scavenger-Tank 4506 | -9/Materials | Discovered new exit (range 8) 4568 | -9/Materials | Entered Mines 4577 | -9/Mines | Found the Drone Emporium 4598 | -9/Mines | Assembled infested the area 4814 | -9/Mines | Discovered new exit (range 9) 5009 | -9/Mines | Escorted by a lone wolf Derelict 5053 | -9/Mines | Learned location of Storage (-9) 5113 | -9/Mines | Deemed a non-threat by the Exiles lab entrance 5113 | -9/Mines | Discovered new exit (range 5) 5128 | -9/Mines | Entered Exiles 5128 | -9/Exiles | Accompanied by 1 ally 5168 | -9/Exiles | Met 8R-AWN 5204 | -9/Exiles | Met EX-HEX 5247 | -9/Exiles | Met EX-BIN 5268 | -9/Exiles | Met EX-DEC 5423 | -9/Exiles | Build established: Scavenger-Mutant 5726 | -9/Exiles | Build established: Mutant 5851 | -9/Exiles | Attacked by the Exiles 5991 | -9/Exiles | Destroyed 8R-AWN 6110 | -9/Exiles | Found Prototype Protection 6116 | -9/Exiles | Found Prototype Ballistic Gun 6117 | -9/Exiles | Identified 8R-AWN's Boregun 6413 | -9/Exiles | Build established: Scavenger-Tank 6415 | -9/Exiles | Destroyed EX-DEC 6446 | -9/Exiles | Destroyed EX-BIN 6455 | -9/Exiles | DAS Turret deployed 6461 | -9/Exiles | Found Prototype Device 6462 | -9/Exiles | Identified System Purifier 6529 | -9/Exiles | Found Prototype Processor 6607 | -9/Exiles | Allies destroyed EX-HEX 6912 | -9/Exiles | Discovered new exit (range 14) 7335 | -9/Exiles | Discovered new exit (range 14) 7358 | -9/Exiles | Entered Mines 7433 | -8/Mines | NK-0LA came to Exiles' defense 7445 | -8/Mines | Core integrity fell below 50% 7457 | -8/Mines | Core integrity fell below 20% 7473 | -8/Mines | System corruption reached 10% 7480 | -8/Mines | Destroyed by NK-0LA with NK-0LA's Tesla Doomcannon Last Messages --------------- 07433_ Scythe follow-up attack on NK-0LA. 07436_ Scythe destroyed. 07438_ Scythe follow-up attack on NK-0LA. 07441_ System corrupted: Component data lost. 07441_ Destroyed Adv. Power Amplifier. 07443_ Scythe follow-up attack on NK-0LA. 07444_ Lgt. Armor Plating destroyed. 07444_ Scythe destroyed. 07450_ Acquired 4 matter. 07450_ Lgt. Treads destroyed. 07453_ NK-0LA Prototype Storage severed. 07454_ Ion Engine destroyed. 07464_ Lgt. Treads destroyed. 07467_ NK-0LA Adv. Cryofiber Web severed. 07472_ Minigun destroyed. 07472_ Lgt. Armor Plating destroyed. 07474_ System corrupted: Scythe rejected. 07476_ Acquired Scythe. 07476_ Minigun destroyed. 07476_ Lgt. Treads destroyed. Map ----- +----------------------------------------------------+ | ????????????????????????????????? | | ????????????????????????????????? | | ????????????????????????????????? | | ????????????????????????????????? | | ????????????????????????????????? | | ????????????????????????????????? | | ????????????????????????????????? | | ????????????????????????????????? | | ????????????????????? ??????????? | | ????????????????????? ??????????? | | ????????????????????? ??????????? | | ????????????????????? ?????????? | | ?????????????????????? ?????????? | | ?????????????????????? ?????????? | | ?????????????????????? ?????????? | | ?????????????????????? ###??????? | | ??????????????????????? #??????? | | ??????????????????????? ??????? | | ??????????????????????? ??????? | | ??????????????????????? #??????? | | ???????????????????????# #??????? | | ???????????????????????# #??????? | | ???????????????????????# #??????? | | ???????????????????????#!#??????? | | ???????????????????????#x##?????? | | ???????????????????????#!@#?????? | | ???????????????????????## #?????? | | ????????????????????????# #?????? | | ????????????????????????# #?????? | | ????????????????????????# #?????? | | ????????????????????????# #?????? | | ????????????????????????# #?????? | | ????????????????????????# #?????? | | ????????????????????????# #?????? | | ????????????????????????# #?????? | | ????????????????????????# #?????? | | ??????????????????????### #?????? | | ?????????????????????## ##????? | | ?????????????????????# ###??? | | ????????????????????## #??? | | ????????????????????# #?? | | ????????????????????# #?? | | ????????????????????## #?? | | ?????????????????????# #?? | | ?????????????????????# ##?? | | ?????????????????????# ####??? | | ?????????????????????## ##?????? | | ??????????????????????####??????? | | ????????????????????????????????? | | ????????????????????????????????? | +----------------------------------------------------+ Best States ------------- Heat Dissipation 28 Energy Generation 19 Energy Capacity 310 Matter Stores 300 Matter Capacity 300 Sight Range 16 Terrain Scan Density 10 Armor Coverage 300 Resistance: KI 20 Evasion (%) 50 Targeting Accuracy 5 Recoil Reduction 3 Item Schematics ----------------- None Robot Schematics ------------------ None Fabricated ------------ Nothing Repaired ---------- Lgt. Treads | 17% | -10/Materials Lgt. Treads | 30% | -10/Materials Studied --------- Assault Rifle | -9/Materials | Hacked Alien Tech Used ----------------- None Achievements -------------- None Challenges ------------ None Game ------ Seed SystemCooledDisintegrator Manual? 0 Play Time 00:57:16 Cumulative 121.8 hours Start 2026.04.19 @ 17:43:12 End 2026.04.19 @ 19:02:41 Sessions 1 Manual Loads 0 Difficulty Rogue Special Mode None Game No. 90 Rogue 90 Adventurer 0 Explorer 0 Win Type - Total 1 Types 0/0/0/1/0/0/0/0/0/0 Lore% 46 Gallery% 53 Achievement% 50 Wizard Run 0 Options --------- Layout 2 ASCII 0 Keyboard 0 Movement Mouse Keybinds 0 Fullscreen 1 Font 48/Smallcaps Map View 50x44 Zoom Use 0% Tactical HUD 1 Map Filters NONE Filters NONE Steam 1 RUN: 75656043-a75d-48af-8b2e-8593c6cd670c